[Event "Polofinale MCR junioru 2023"]
[Site "Czech Republic"]
[Date "2023.11.17"]
[Round "8.39"]
[White "Lieber, Lukas"]
[Black "Sklar, Petr"]
[Result "1-0"]
[TimeControl "90 min per 40 moves + 15 min + 30 sec / move from move 1"]
[WhiteFideId "23700688"]
[BlackFideId "23731141"]
[WhiteElo "1959"]
[BlackElo "1160"]

1. Nf3 {[%clk 01:30:57]} {[%emt 00:00:01]} f5 {[%clk 01:30:42]} {[%emt
00:00:19]} 2. d3 {[%clk 01:30:55]} {[%emt 00:00:32]} Nf6 {[%clk 01:30:31]}
{[%emt 00:00:41]} 3. e4 {[%clk 01:31:24]} {[%emt 00:00:01]} fxe4 {[%clk
01:26:36]} {[%emt 00:04:26]} 4. dxe4 {[%clk 01:31:52]} {[%emt 00:00:02]} e5
{[%clk 01:20:40]} {[%emt 00:06:26]} 5. Nxe5 {[%clk 01:31:12]} {[%emt 00:01:11]}
Qe7 {[%clk 01:20:36]} {[%emt 00:00:33]} 6. Nf3 {[%clk 01:31:15]} {[%emt
00:00:27]} Qxe4+ {[%clk 01:19:53]} {[%emt 00:01:13]} 7. Be2 {[%clk 01:31:43]}
{[%emt 00:00:02]} Bc5 {[%clk 01:17:58]} {[%emt 00:02:25]} 8. O-O {[%clk
01:32:10]} {[%emt 00:00:02]} O-O {[%clk 01:17:13]} {[%emt 00:01:16]} 9. Bd3
{[%clk 01:31:46]} {[%emt 00:00:25]} Qc6 {[%clk 01:16:28]} {[%emt 00:01:14]} 10.
Ne5 {[%clk 01:32:05]} {[%emt 00:00:42]} Qb6 {[%clk 01:13:23]} {[%emt 00:03:35]}
11. Bc4+ {[%clk 01:32:33]} {[%emt 00:00:02]} Kh8 {[%clk 01:00:04]} {[%emt
00:13:48]} 12. Nf7+ {[%clk 01:33:01]} {[%emt 00:00:02]} Kg8 {[%clk 00:58:18]}
{[%emt 00:02:17]} 13. Nd6+ {[%clk 01:29:02]} {[%emt 00:04:28]} Kh8 {[%clk
00:56:54]} {[%emt 00:01:53]} 14. Nxc8 {[%clk 01:29:31]} {[%emt 00:00:02]} Rxc8
{[%clk 00:56:23]} {[%emt 00:01:01]} 15. Bg5 {[%clk 01:30:00]} {[%emt 00:00:01]}
Ne4 {[%clk 00:43:56]} {[%emt 00:12:57]} 16. Bh4 {[%clk 01:30:13]} {[%emt
00:00:17]} Rf8 {[%clk 00:36:59]} {[%emt 00:07:28]} 17. Qe2 {[%clk 01:29:36]}
{[%emt 00:01:07]} Qxb2 {[%clk 00:30:22]} {[%emt 00:07:06]} 18. Qxe4 {[%clk
01:30:04]} {[%emt 00:00:02]} Qxa1 {[%clk 00:30:29]} {[%emt 00:00:24]} 19. Bd3
{[%clk 01:30:33]} g6 {[%clk 00:30:02]} {[%emt 00:00:58]} 20. c3 {[%clk
01:31:02]} Nc6 {[%clk 00:28:50]} {[%emt 00:01:42]} 21. Qd5 {[%clk 01:30:39]}
{[%emt 00:00:53]} Bb6 {[%clk 00:24:31]} {[%emt 00:04:49]} 22. Qb3 {[%clk
01:29:29]} {[%emt 00:01:40]} Rae8 {[%clk 00:21:05]} {[%emt 00:03:56]} 23. h3
{[%clk 01:27:32]} {[%emt 00:02:27]} d6 {[%clk 00:18:14]} {[%emt 00:03:22]} 24.
Kh2 {[%clk 01:27:01]} {[%emt 00:01:01]} Nd4 {[%clk 00:14:02]} {[%emt 00:04:43]}
25. cxd4 {[%clk 01:26:23]} {[%emt 00:01:08]} Qxd4 {[%clk 00:14:24]} {[%emt
00:00:08]} 26. Bg3 {[%clk 01:26:21]} {[%emt 00:00:31]} Qf6 {[%clk 00:11:34]}
{[%emt 00:03:23]} 27. Nc3 {[%clk 01:26:15]} {[%emt 00:00:35]} Qd4 {[%clk
00:08:14]} {[%emt 00:03:49]} 28. Ne2 {[%clk 01:25:59]} {[%emt 00:00:45]} Qc5
{[%clk 00:06:19]} {[%emt 00:02:27]} 29. Rc1 {[%clk 01:25:27]} {[%emt 00:01:01]}
Qg5 {[%clk 00:05:53]} {[%emt 00:00:56]} 30. f4 {[%clk 01:25:06]} {[%emt
00:00:51]} Qf6 {[%clk 00:05:40]} {[%emt 00:00:43]} 31. Be1 {[%clk 01:25:07]}
{[%emt 00:00:29]} Rxe2 {[%clk 00:04:59]} {[%emt 00:01:11]} 32. Bxe2 {[%clk
01:21:35]} {[%emt 00:04:00]} Qxf4+ {[%clk 00:02:54]} {[%emt 00:02:37]} 33. g3
{[%clk 01:22:03]} Qe5 {[%clk 00:02:55]} {[%emt 00:00:29]} 34. Qd1 {[%clk
01:19:04]} {[%emt 00:03:29]} d5 {[%clk 00:02:23]} {[%emt 00:01:02]} 35. Bf3
{[%clk 01:17:00]} {[%emt 00:02:33]} Qe3 {[%clk 00:01:52]} {[%emt 00:01:02]} 36.
Bc3+ {[%clk 01:05:39]} {[%emt 00:11:51]} d4 {[%clk 00:02:16]} {[%emt 00:00:06]}
37. Bxd4+ {[%clk 01:04:49]} {[%emt 00:01:18]} Bxd4 {[%clk 00:02:41]} {[%emt
00:00:07]} 38. Bg2 {[%clk 01:01:39]} {[%emt 00:03:40]} c6 {[%clk 00:02:24]}
{[%emt 00:00:47]} 39. Rc4 {[%clk 01:00:52]} {[%emt 00:01:16]} Bb6 {[%clk
00:02:14]} {[%emt 00:00:41]} 40. Qa1+ {[%clk 01:00:19]} {[%emt 00:01:02]} Kg8
{[%clk 00:02:35]} {[%emt 00:00:10]} 41. Re4 {[%clk 01:00:02]} {[%emt 00:00:47]}
Qc5 {[%clk 00:02:09]} {[%emt 00:00:55]} 42. h4 {[%clk 00:59:13]} {[%emt
00:01:19]} Qc2 {[%clk 00:01:03]} {[%emt 00:01:36]} 43. Re7 {[%clk 00:57:55]}
{[%emt 00:01:47]} Rf7 {[%clk 00:01:12]} {[%emt 00:00:21]} 44. Re8+ {[%clk
00:58:24]} {[%emt 00:00:01]} Rf8 {[%clk 00:01:10]} {[%emt 00:00:33]} 45. Rxf8+
{[%clk 00:58:53]} {[%emt 00:00:02]} Kxf8 {[%clk 00:01:04]} {[%emt 00:00:37]} 46.
Qh8+ {[%clk 00:59:21]} {[%emt 00:00:01]} Ke7 {[%clk 00:00:43]} {[%emt
00:00:51]} 47. Qxh7+ {[%clk 00:59:45]} {[%emt 00:00:05]} Kd6 {[%clk 00:15:46]}
{[%emt 00:00:57]} 48. Qxb7 {[%clk 01:16:12]} {[%emt 00:00:03]} Qc5 {[%clk
00:11:38]} {[%emt 00:04:38]} 49. Qb8+ {[%clk 01:16:40]} {[%emt 00:00:02]} Ke7
{[%clk 00:11:15]} {[%emt 00:00:52]} 50. Qg8 {[%clk 01:16:38]} {[%emt 00:00:33]}
Qc2 {[%clk 00:10:33]} {[%emt 00:01:12]} 51. Qg7+ {[%clk 01:15:25]} {[%emt
00:01:42]} Kd8 {[%clk 00:09:45]} {[%emt 00:01:18]} 52. Qg8+ {[%clk 01:15:25]}
{[%emt 00:00:30]} Kd7 {[%clk 00:09:44]} {[%emt 00:00:31]} 53. Qh7+ {[%clk
01:15:39]} {[%emt 00:00:15]} Ke6 {[%clk 00:09:48]} {[%emt 00:00:27]} 54. h5
{[%clk 01:16:07]} {[%emt 00:00:02]} Kf6 {[%clk 00:09:21]} {[%emt 00:00:56]} 55.
h6 {[%clk 01:16:18]} {[%emt 00:00:16]} Qd1 {[%clk 00:08:21]} {[%emt 00:01:34]}
56. Qg7+ {[%clk 01:09:47]} {[%emt 00:07:01]} Kg5 {[%clk 00:08:24]} {[%emt
00:00:26]} 57. Qe5+ {[%clk 01:08:31]} {[%emt 00:01:44]} Kxh6 {[%clk 00:07:54]}
{[%emt 00:01:02]} 58. Qh8+ {[%clk 01:08:53]} {[%emt 00:00:08]} Kg5 {[%clk
00:08:06]} {[%emt 00:00:18]} 59. Qh4+ {[%clk 01:09:21]} {[%emt 00:00:02]} Kf5
{[%clk 00:07:21]} {[%emt 00:01:15]} 60. Qe4+ {[%clk 01:08:36]} {[%emt
00:01:13]} Kf6 {[%clk 00:07:08]} {[%emt 00:00:45]} 61. Qxc6+ {[%clk 01:09:04]}
{[%emt 00:00:02]} Kg7 {[%clk 00:06:42]} {[%emt 00:01:55]} 62. Qe4 {[%clk
01:08:00]} {[%emt 00:01:33]} Kf7 {[%clk 00:05:52]} {[%emt 00:01:22]} 63. Bf3
{[%clk 01:07:16]} {[%emt 00:01:12]} Qd2+ {[%clk 00:05:31]} {[%emt 00:00:52]} 64.
Be2 {[%clk 01:05:53]} {[%emt 00:01:52]} Kg7 {[%clk 00:04:45]} {[%emt 00:01:17]}
65. Qe7+ {[%clk 01:04:40]} {[%emt 00:01:42]} Kh6 {[%clk 00:04:39]} {[%emt
00:00:38]} 66. a4 {[%clk 01:01:12]} {[%emt 00:03:58]} Qd8 {[%clk 00:04:20]}
{[%emt 00:00:49]} 67. Qe6 {[%clk 00:59:47]} {[%emt 00:01:54]} Kg7 {[%clk
00:04:00]} {[%emt 00:00:51]} 68. Kh3 {[%clk 00:59:16]} {[%emt 00:01:00]} Qh8+
{[%clk 00:03:58]} {[%emt 00:00:33]} 69. Kg2 {[%clk 00:59:34]} {[%emt 00:00:10]}
Qf8 {[%clk 00:04:12]} {[%emt 00:00:18]} 70. Bd3 {[%clk 00:58:47]} {[%emt
00:01:15]} Qf7 {[%clk 00:03:53]} {[%emt 00:00:51]} 71. Qe5+ {[%clk 00:58:54]}
{[%emt 00:00:21]} Qf6 {[%clk 00:04:10]} {[%emt 00:00:15]} 72. Qb5 {[%clk
00:58:49]} {[%emt 00:00:33]} Qd8 {[%clk 00:03:47]} {[%emt 00:00:53]} 73. Kf3
{[%clk 00:58:10]} {[%emt 00:01:08]} Qd4 {[%clk 00:04:07]} {[%emt 00:00:13]} 74.
Bb1 {[%clk 00:57:13]} {[%emt 00:01:26]} Qf2+ {[%clk 00:04:17]} {[%emt
00:00:20]} 75. Kg4 {[%clk 00:57:12]} {[%emt 00:00:25]} Qd4+ {[%clk 00:04:22]}
{[%emt 00:00:31]} 76. Kh3 {[%clk 00:57:00]} {[%emt 00:00:39]} Qd8 {[%clk
00:04:00]} {[%emt 00:00:54]} 77. Qc6 {[%clk 00:55:58]} {[%emt 00:01:30]} Qf6
{[%clk 00:04:13]} {[%emt 00:00:20]} 78. Qd7+ {[%clk 00:54:54]} {[%emt
00:01:34]} Qf7 {[%clk 00:04:30]} {[%emt 00:00:13]} 79. Qb5 {[%clk 00:55:15]}
{[%emt 00:00:08]} Qe6+ {[%clk 00:04:31]} {[%emt 00:00:30]} 80. Kh2 {[%clk
00:55:34]} {[%emt 00:00:09]} Qe3 {[%clk 00:04:15]} {[%emt 00:00:47]} 81. Qd7+
{[%clk 00:52:45]} {[%emt 00:03:19]} Kh6 {[%clk 00:04:43]} {[%emt 00:00:04]} 82.
Kh3 {[%clk 00:52:21]} {[%emt 00:00:51]} Qf3 {[%clk 00:04:39]} {[%emt 00:00:36]}
83. Bd3 {[%clk 00:51:20]} {[%emt 00:01:30]} Qh1+ {[%clk 00:04:40]} {[%emt
00:00:30]} 84. Kg4 {[%clk 00:51:45]} {[%emt 00:00:03]} Qh5+ {[%clk 00:04:54]}
{[%emt 00:00:19]} 85. Kf4 {[%clk 00:51:59]} {[%emt 00:00:14]} Qg5+ {[%clk
00:04:30]} {[%emt 00:00:57]} 86. Kf3 {[%clk 00:51:12]} {[%emt 00:01:15]} Qf6+
{[%clk 00:04:08]} {[%emt 00:00:54]} 87. Kg2 {[%clk 00:51:23]} {[%emt 00:00:18]}
Bd4 {[%clk 00:04:14]} {[%emt 00:00:25]} 88. Kh3 {[%clk 00:51:06]} {[%emt
00:00:43]} Qe5 {[%clk 00:03:56]} {[%emt 00:00:52]} 89. Qf7 {[%clk 00:49:07]}
{[%emt 00:02:28]} Qf6 {[%clk 00:04:01]} {[%emt 00:00:26]} 90. Qd5 {[%clk
00:47:50]} {[%emt 00:01:45]} Qe5 {[%clk 00:04:15]} {[%emt 00:00:18]} 91. Qd8
{[%clk 00:47:32]} {[%emt 00:00:47]} Qe6+ {[%clk 00:04:20]} {[%emt 00:00:26]} 92.
Kg2 {[%clk 00:46:45]} {[%emt 00:01:16]} Qa2+ {[%clk 00:04:26]} {[%emt
00:00:26]} 93. Kf3 {[%clk 00:46:19]} {[%emt 00:00:54]} Qf2+ {[%clk 00:04:53]}
{[%emt 00:00:05]} 94. Kg4 {[%clk 00:46:22]} {[%emt 00:00:23]} Qf6 {[%clk
00:05:08]} {[%emt 00:00:19]} 95. Qd7 {[%clk 00:44:51]} {[%emt 00:02:01]} Qg5+
{[%clk 00:05:08]} {[%emt 00:00:30]} 96. Kh3 {[%clk 00:45:15]} {[%emt 00:00:04]}
Qf6 {[%clk 00:05:26]} {[%emt 00:00:14]} 97. Qg4 {[%clk 00:45:00]} {[%emt
00:00:44]} Qg5 {[%clk 00:05:28]} {[%emt 00:00:29]} 98. Qxd4 {[%clk 00:45:15]}
{[%emt 00:00:14]} 1-0

[Event "Polofinale MCR junioru 2023"]
[Site "Czech Republic"]
[Date "2023.11.18"]
[Round "9.2"]
[White "Jun, Rudolf"]
[Black "Vojta, Jakub"]
[Result "1/2-1/2"]
[TimeControl "90 min per 40 moves + 15 min + 30 sec / move from move 1"]
[WhiteFideId "376612"]
[BlackFideId "382515"]
[WhiteElo "2260"]
[BlackElo "2267"]

1. e4 {[%clk 01:30:53]} {[%emt 00:00:06]} e6 {[%clk 01:30:56]} {[%emt
00:00:05]} 2. d4 {[%clk 01:31:19]} {[%emt 00:00:04]} d5 {[%clk 01:31:22]}
{[%emt 00:00:04]} 3. exd5 {[%clk 01:31:45]} {[%emt 00:00:03]} exd5 {[%clk
01:31:49]} {[%emt 00:00:04]} 4. Bd3 {[%clk 01:31:01]} {[%emt 00:01:14]} Nf6
{[%clk 01:30:09]} {[%emt 00:02:10]} 5. Nf3 {[%clk 01:30:50]} {[%emt 00:00:40]}
c5 {[%clk 01:30:15]} {[%emt 00:00:24]} 6. c3 {[%clk 01:26:13]} {[%emt
00:05:07]} Be7 {[%clk 01:28:39]} {[%emt 00:02:06]} 7. O-O {[%clk 01:22:04]}
{[%emt 00:04:39]} O-O {[%clk 01:29:03]} {[%emt 00:00:05]} 8. h3 {[%clk
01:19:35]} {[%emt 00:03:00]} Nc6 {[%clk 01:28:27]} {[%emt 00:01:07]} 9. Bf4
{[%clk 01:17:57]} {[%emt 00:02:07]} Qb6 {[%clk 01:28:24]} {[%emt 00:00:33]} 10.
b3 {[%clk 01:13:25]} {[%emt 00:05:03]} Ne4 {[%clk 01:27:41]} {[%emt 00:01:12]}
11. c4 {[%clk 01:05:11]} {[%emt 00:08:45]} Bf6 {[%clk 01:20:09]} {[%emt
00:08:02]} 12. cxd5 {[%clk 00:44:45]} {[%emt 00:20:55]} Nxd4 {[%clk 01:20:28]}
{[%emt 00:00:11]} 13. Ne5 {[%clk 00:42:14]} {[%emt 00:03:00]} Re8 {[%clk
01:07:53]} {[%emt 00:13:06]} 14. Bxe4 {[%clk 00:34:19]} {[%emt 00:08:25]} Bxe5
{[%clk 01:08:16]} {[%emt 00:00:07]} 15. Bxh7+ {[%clk 00:28:40]} {[%emt
00:06:09]} Kxh7 {[%clk 01:08:04]} {[%emt 00:00:43]} 16. Qh5+ {[%clk 00:29:02]}
{[%emt 00:00:07]} Kg8 {[%clk 01:08:30]} {[%emt 00:00:05]} 17. Bxe5 {[%clk
00:29:13]} {[%emt 00:00:18]} Nc2 {[%clk 01:07:00]} {[%emt 00:02:00]} 18. d6
{[%clk 00:28:47]} {[%emt 00:00:57]} Nxa1 {[%clk 01:00:25]} {[%emt 00:07:04]} 19.
Bxg7 {[%clk 00:26:35]} {[%emt 00:02:43]} 1/2-1/2

[Event "Polofinale MCR junioru 2023"]
[Site "Czech Republic"]
[Date "2023.11.18"]
[Round "9.3"]
[White "Hak, David"]
[Black "Lihotsky, Lukas"]
[Result "1-0"]
[TimeControl "90 min per 40 moves + 15 min + 30 sec / move from move 1"]
[WhiteFideId "377007"]
[BlackFideId "23727004"]
[WhiteElo "2253"]
[BlackElo "2100"]

1. d4 {[%clk 01:21:06]} {[%emt 00:09:53]} Nf6 {[%clk 01:30:47]} {[%emt
00:00:13]} 2. c4 {[%clk 01:21:30]} {[%emt 00:00:05]} e6 {[%clk 01:31:09]}
{[%emt 00:00:08]} 3. Nc3 {[%clk 01:21:52]} {[%emt 00:00:09]} Bb4 {[%clk
01:31:15]} {[%emt 00:00:24]} 4. e3 {[%clk 01:21:53]} {[%emt 00:00:29]} d5
{[%clk 01:31:40]} {[%emt 00:00:05]} 5. Nge2 {[%clk 01:21:03]} {[%emt 00:01:20]}
dxc4 {[%clk 01:26:11]} {[%emt 00:05:59]} 6. a3 {[%clk 01:20:39]} {[%emt
00:00:54]} Be7 {[%clk 01:22:14]} {[%emt 00:04:27]} 7. Nf4 {[%clk 01:18:58]}
{[%emt 00:02:11]} c5 {[%clk 01:14:18]} {[%emt 00:08:25]} 8. Bxc4 {[%clk
01:19:18]} {[%emt 00:00:11]} O-O {[%clk 01:12:47]} {[%emt 00:02:01]} 9. O-O
{[%clk 01:19:19]} {[%emt 00:00:29]} a6 {[%clk 01:11:23]} {[%emt 00:01:54]} 10.
dxc5 {[%clk 01:14:34]} {[%emt 00:05:15]} Bxc5 {[%clk 01:10:49]} {[%emt
00:01:03]} 11. b4 {[%clk 01:14:38]} {[%emt 00:00:27]} Bd6 {[%clk 01:07:46]}
{[%emt 00:03:33]} 12. Bb2 {[%clk 01:05:19]} {[%emt 00:09:49]} Qc7 {[%clk
01:04:45]} {[%emt 00:03:31]} 13. Bd3 {[%clk 01:05:48]} {[%emt 00:00:01]} Nbd7
{[%clk 00:57:38]} {[%emt 00:07:37]} 14. Rc1 {[%clk 00:58:16]} {[%emt 00:08:00]}
Bxf4 {[%clk 00:52:45]} {[%emt 00:05:24]} 15. exf4 {[%clk 00:58:34]} {[%emt
00:00:13]} Qxf4 {[%clk 00:52:55]} {[%emt 00:00:20]} 16. g3 {[%clk 00:52:16]}
{[%emt 00:06:47]} Qb8 {[%clk 00:41:01]} {[%emt 00:12:25]} 17. Ne4 {[%clk
00:51:57]} {[%emt 00:00:48]} Nxe4 {[%clk 00:39:26]} {[%emt 00:02:06]} 18. Bxe4
{[%clk 00:52:13]} {[%emt 00:00:13]} f5 {[%clk 00:37:01]} {[%emt 00:02:55]} 19.
Bb1 {[%clk 00:44:37]} {[%emt 00:08:06]} b5 {[%clk 00:27:21]} {[%emt 00:10:10]}
20. Ba2 {[%clk 00:31:49]} {[%emt 00:13:19]} Nf6 {[%clk 00:18:31]} {[%emt
00:09:19]} 21. Re1 {[%clk 00:29:31]} {[%emt 00:02:49]} Ne4 {[%clk 00:11:28]}
{[%emt 00:07:32]} 22. Qd4 {[%clk 00:26:47]} {[%emt 00:03:15]} Rf7 {[%clk
00:11:31]} {[%emt 00:00:27]} 23. Qd8+ {[%clk 00:21:58]} {[%emt 00:05:19]} Rf8
{[%clk 00:11:59]} {[%emt 00:00:02]} 24. Qe7 {[%clk 00:20:01]} {[%emt 00:02:26]}
Rf7 {[%clk 00:11:10]} {[%emt 00:01:19]} 25. Qe8+ {[%clk 00:15:17]} {[%emt
00:05:15]} Rf8 {[%clk 00:11:39]} {[%emt 00:00:01]} 26. Bxe6+ {[%clk 00:15:17]}
{[%emt 00:00:30]} Bxe6 {[%clk 00:11:59]} {[%emt 00:00:09]} 27. Qxe6+ {[%clk
00:15:37]} {[%emt 00:00:10]} Rf7 {[%clk 00:06:59]} {[%emt 00:05:31]} 28. Rc6
{[%clk 00:13:12]} {[%emt 00:02:56]} Ng5 {[%clk 00:03:10]} {[%emt 00:04:18]} 29.
Qd5 {[%clk 00:12:49]} {[%emt 00:00:53]} Qb7 {[%clk 00:01:50]} {[%emt 00:01:49]}
30. Re5 {[%clk 00:08:43]} {[%emt 00:04:36]} Raf8 {[%clk 00:01:22]} {[%emt
00:00:58]} 31. h4 {[%clk 00:07:12]} {[%emt 00:02:02]} Ne4 {[%clk 00:00:58]}
{[%emt 00:00:53]} 32. Rxf5 {[%clk 00:06:46]} {[%emt 00:00:57]} Nd2 {[%clk
00:00:37]} {[%emt 00:00:51]} 33. Bd4 {[%clk 00:02:03]} {[%emt 00:05:12]} Qxc6
{[%clk 00:00:34]} {[%emt 00:00:33]} 34. Qxc6 {[%clk 00:02:19]} {[%emt
00:00:15]} Rxf5 {[%clk 00:01:01]} {[%emt 00:00:03]} 35. Qe6+ {[%clk 00:02:08]}
{[%emt 00:00:41]} R8f7 {[%clk 00:00:32]} {[%emt 00:01:00]} 36. Bc5 {[%clk
00:02:14]} {[%emt 00:00:23]} h6 {[%clk 00:00:32]} {[%emt 00:00:29]} 37. Qxa6
{[%clk 00:02:16]} {[%emt 00:00:28]} Ne4 {[%clk 00:00:32]} {[%emt 00:00:29]} 38.
Qa8+ {[%clk 00:02:36]} {[%emt 00:00:11]} 1-0

[Event "Polofinale MCR junioru 2023"]
[Site "Czech Republic"]
[Date "2023.11.18"]
[Round "9.4"]
[White "Soucek, Petr"]
[Black "Janous, Marek"]
[Result "1/2-1/2"]
[TimeControl "90 min per 40 moves + 15 min + 30 sec / move from move 1"]
[WhiteFideId "23715170"]
[BlackFideId "23709650"]
[WhiteElo "2227"]
[BlackElo "2098"]

1. e4 {[%clk 01:26:58]} {[%emt 00:04:02]} c5 {[%clk 01:29:55]} {[%emt
00:01:05]} 2. Nf3 {[%clk 01:27:22]} {[%emt 00:00:06]} Nc6 {[%clk 01:29:09]}
{[%emt 00:01:16]} 3. d4 {[%clk 01:26:29]} {[%emt 00:01:23]} cxd4 {[%clk
01:29:31]} {[%emt 00:00:08]} 4. Nxd4 {[%clk 01:26:54]} {[%emt 00:00:05]} Nf6
{[%clk 01:29:50]} {[%emt 00:00:10]} 5. Nc3 {[%clk 01:27:19]} {[%emt 00:00:05]}
e6 {[%clk 01:26:14]} {[%emt 00:04:07]} 6. Nxc6 {[%clk 01:24:22]} {[%emt
00:03:27]} bxc6 {[%clk 01:25:54]} {[%emt 00:00:49]} 7. e5 {[%clk 01:24:15]}
{[%emt 00:00:38]} Nd5 {[%clk 01:25:26]} {[%emt 00:00:58]} 8. Ne4 {[%clk
01:23:00]} {[%emt 00:01:45]} Bb7 {[%clk 01:22:27]} {[%emt 00:03:29]} 9. c4
{[%clk 01:21:58]} {[%emt 00:01:33]} Nb4 {[%clk 01:19:39]} {[%emt 00:03:17]} 10.
Bd2 {[%clk 00:44:44]} {[%emt 00:37:44]} c5 {[%clk 01:18:20]} {[%emt 00:01:49]}
11. Bxb4 {[%clk 00:39:32]} {[%emt 00:05:43]} cxb4 {[%clk 01:10:30]} {[%emt
00:08:20]} 12. Qd4 {[%clk 00:36:49]} {[%emt 00:03:12]} Qb6 {[%clk 01:09:21]}
{[%emt 00:01:38]} 13. O-O-O {[%clk 00:25:57]} {[%emt 00:11:23]} Qxd4 {[%clk
01:08:21]} {[%emt 00:01:30]} 14. Rxd4 {[%clk 00:26:23]} {[%emt 00:00:04]} Rc8
{[%clk 01:08:38]} {[%emt 00:00:12]} 15. Be2 {[%clk 00:22:29]} {[%emt 00:04:25]}
Bc5 {[%clk 01:04:57]} {[%emt 00:04:10]} 16. Nxc5 {[%clk 00:20:57]} {[%emt
00:02:02]} Rxc5 {[%clk 01:05:25]} {[%emt 00:00:03]} 17. Rhd1 {[%clk 00:20:41]}
{[%emt 00:00:47]} Rc7 {[%clk 01:03:51]} {[%emt 00:02:03]} 18. g3 {[%clk
00:19:10]} {[%emt 00:02:02]} Ke7 {[%clk 01:01:56]} {[%emt 00:02:24]} 19. b3
{[%clk 00:15:17]} {[%emt 00:04:23]} Bc6 {[%clk 00:58:30]} {[%emt 00:03:56]} 20.
Kb2 {[%clk 00:11:40]} {[%emt 00:04:07]} a5 {[%clk 00:56:16]} {[%emt 00:02:44]}
21. Bd3 {[%clk 00:08:27]} {[%emt 00:03:44]} Ra8 {[%clk 00:48:20]} {[%emt
00:08:25]} 22. Rd2 {[%clk 00:06:48]} {[%emt 00:02:09]} Rca7 {[%clk 00:37:02]}
{[%emt 00:11:48]} 23. Bc2 {[%clk 00:06:14]} {[%emt 00:01:05]} h6 {[%clk
00:19:34]} {[%emt 00:17:57]} 24. h4 {[%clk 00:05:18]} {[%emt 00:01:27]} a4
{[%clk 00:15:10]} {[%emt 00:04:53]} 25. bxa4 {[%clk 00:04:42]} {[%emt
00:01:06]} Ra5 {[%clk 00:15:35]} {[%emt 00:00:05]} 26. f4 {[%clk 00:05:03]}
{[%emt 00:00:09]} R8a7 {[%clk 00:16:02]} {[%emt 00:00:04]} 27. c5 {[%clk
00:01:00]} {[%emt 00:04:32]} 1/2-1/2

[Event "Polofinale MCR junioru 2023"]
[Site "Czech Republic"]
[Date "2023.11.18"]
[Round "9.5"]
[White "Bokhnak, Timofey"]
[Black "Kubiczek, Michal"]
[Result "1-0"]
[TimeControl "90 min per 40 moves + 15 min + 30 sec / move from move 1"]
[WhiteFideId "14172976"]
[BlackFideId "23706996"]
[WhiteElo "2210"]
[BlackElo "2068"]

1. e4 {[%clk 01:30:57]} {[%emt 00:00:02]} e5 {[%clk 01:30:48]} {[%emt
00:00:12]} 2. Nf3 {[%clk 01:30:38]} {[%emt 00:00:49]} Nc6 {[%clk 01:31:09]}
{[%emt 00:00:09]} 3. Nc3 {[%clk 01:29:43]} {[%emt 00:01:26]} Nf6 {[%clk
01:31:17]} {[%emt 00:00:20]} 4. Bb5 {[%clk 01:30:06]} {[%emt 00:00:08]} Bd6
{[%clk 01:30:51]} {[%emt 00:00:56]} 5. d4 {[%clk 01:25:49]} {[%emt 00:04:48]}
Bb4 {[%clk 01:30:57]} {[%emt 00:00:24]} 6. dxe5 {[%clk 01:18:39]} {[%emt
00:07:40]} Nxe4 {[%clk 01:29:39]} {[%emt 00:01:45]} 7. Qd3 {[%clk 01:16:08]}
{[%emt 00:03:03]} Bxc3+ {[%clk 01:20:56]} {[%emt 00:09:12]} 8. bxc3 {[%clk
01:16:31]} {[%emt 00:00:08]} Nc5 {[%clk 01:20:12]} {[%emt 00:01:13]} 9. Qe3
{[%clk 01:16:37]} {[%emt 00:00:25]} Ne6 {[%clk 01:18:03]} {[%emt 00:02:38]} 10.
Ba3 {[%clk 01:16:17]} {[%emt 00:00:50]} Ne7 {[%clk 01:16:26]} {[%emt 00:02:08]}
11. O-O {[%clk 01:09:13]} {[%emt 00:07:34]} O-O {[%clk 01:14:08]} {[%emt
00:02:47]} 12. Rad1 {[%clk 01:06:05]} {[%emt 00:03:39]} Re8 {[%clk 01:06:29]}
{[%emt 00:08:08]} 13. Nd4 {[%clk 01:01:15]} {[%emt 00:05:20]} Nxd4 {[%clk
00:53:45]} {[%emt 00:13:15]} 14. cxd4 {[%clk 01:00:56]} {[%emt 00:00:49]} a6
{[%clk 00:53:18]} {[%emt 00:00:57]} 15. Ba4 {[%clk 00:58:59]} {[%emt 00:02:27]}
b5 {[%clk 00:52:40]} {[%emt 00:01:08]} 16. Qf3 {[%clk 00:57:11]} {[%emt
00:02:17]} Rb8 {[%clk 00:50:23]} {[%emt 00:02:47]} 17. Bb3 {[%clk 00:57:36]}
{[%emt 00:00:06]} Rf8 {[%clk 00:50:01]} {[%emt 00:00:52]} 18. c4 {[%clk
00:50:29]} {[%emt 00:07:37]} b4 {[%clk 00:44:56]} {[%emt 00:05:35]} 19. Bb2
{[%clk 00:50:07]} {[%emt 00:00:52]} d6 {[%clk 00:44:37]} {[%emt 00:00:49]} 20.
d5 {[%clk 00:46:44]} {[%emt 00:03:53]} Ng6 {[%clk 00:43:13]} {[%emt 00:01:53]}
21. exd6 {[%clk 00:44:34]} {[%emt 00:02:41]} Qxd6 {[%clk 00:43:21]} {[%emt
00:00:22]} 22. Rfe1 {[%clk 00:43:16]} {[%emt 00:01:47]} Bd7 {[%clk 00:42:29]}
{[%emt 00:01:23]} 23. Qe3 {[%clk 00:41:26]} {[%emt 00:02:18]} Rfe8 {[%clk
00:28:26]} {[%emt 00:14:35]} 24. Qd4 {[%clk 00:41:40]} {[%emt 00:00:16]} Qf8
{[%clk 00:27:34]} {[%emt 00:01:22]} 25. c5 {[%clk 00:40:36]} {[%emt 00:01:33]}
a5 {[%clk 00:25:10]} {[%emt 00:02:54]} 26. c6 {[%clk 00:39:06]} {[%emt
00:02:01]} Rxe1+ {[%clk 00:24:38]} {[%emt 00:01:02]} 27. Rxe1 {[%clk 00:39:31]}
{[%emt 00:00:05]} Bc8 {[%clk 00:24:37]} {[%emt 00:00:31]} 28. Re8 {[%clk
00:39:47]} {[%emt 00:00:14]} Qxe8 {[%clk 00:23:38]} {[%emt 00:01:28]} 29. Qxg7#
{[%clk 00:40:14]} {[%emt 00:00:03]} 1-0